[Event "Titled Tuesday Blitz August 16 Late 2022"]
[White "Proudian, Armen"]
[Black "Wiewiora, Eneasz"]
[WhiteFideId "2130734"]
[BlackFideId "1140396"]
[WhiteElo "2380"]
[BlackElo "2291"]
[Result "0-1"]
[Round "10"]
[TimeControl "180+1"]
[Date "2022.08.16"]
[WhiteClock "0:00:07"]
[BlackClock "0:01:05"]

1. e4 {[%clk 0:03:00]}  d6 {[%clk 0:03:00]} 2. d4 {[%clk 0:03:00]}  Nf6 {[%clk 0:03:00]} 3. Nc3 {[%clk 0:03:00]}  e5 {[%clk 0:03:01]} 4. Nf3 {[%clk 0:02:58]}  Nbd7 {[%clk 0:03:00]} 5. Rg1 {[%clk 0:02:54]}  g6 {[%clk 0:02:59]} 6. g4 {[%clk 0:02:54]}  Bg7 {[%clk 0:03:00]} 7. g5 {[%clk 0:02:54]}  Nh5 {[%clk 0:03:00]} 8. Be3 {[%clk 0:02:53]}  O-O {[%clk 0:03:01]} 9. Be2 {[%clk 0:02:48]}  Re8 {[%clk 0:02:40]} 10. Qd2 {[%clk 0:02:45]}  Nf8 {[%clk 0:02:36]} 11. O-O-O {[%clk 0:02:40]}  Ne6 {[%clk 0:02:34]} 12. Nd5 {[%clk 0:02:27]}  c6 {[%clk 0:02:30]} 13. Nc3 {[%clk 0:02:14]}  Qc7 {[%clk 0:02:30]} 14. d5 {[%clk 0:02:10]}  Nef4 {[%clk 0:02:22]} 15. Bc4 {[%clk 0:02:02]}  c5 {[%clk 0:02:19]} 16. Ne2 {[%clk 0:01:47]}  a6 {[%clk 0:02:14]} 17. Bxf4 {[%clk 0:01:44]}  Nxf4 {[%clk 0:02:15]} 18. Nxf4 {[%clk 0:01:44]}  exf4 {[%clk 0:02:16]} 19. Qxf4 {[%clk 0:01:35]}  b5 {[%clk 0:02:16]} 20. Be2 {[%clk 0:01:30]}  c4 {[%clk 0:02:16]} 21. Nd4 {[%clk 0:01:24]}  c3 {[%clk 0:02:14]} 22. b3 {[%clk 0:01:22]}  Qc5 {[%clk 0:02:13]} 23. Kb1 {[%clk 0:00:51]}  Bxd4 {[%clk 0:02:09]} 24. h4 {[%clk 0:00:48]}  Be5 {[%clk 0:02:06]} 25. Qc1 {[%clk 0:00:48]}  Qxf2 {[%clk 0:02:05]} 26. Bd3 {[%clk 0:00:47]}  b4 {[%clk 0:02:01]} 27. Rdf1 {[%clk 0:00:47]}  Qd2 {[%clk 0:01:59]} 28. h5 {[%clk 0:00:46]}  Qxc1+ {[%clk 0:01:57]} 29. Kxc1 {[%clk 0:00:47]}  Bh3 {[%clk 0:01:57]} 30. Rf3 {[%clk 0:00:46]}  Bd7 {[%clk 0:01:57]} 31. Kd1 {[%clk 0:00:43]}  a5 {[%clk 0:01:57]} 32. Ke2 {[%clk 0:00:42]}  a4 {[%clk 0:01:57]} 33. Ke3 {[%clk 0:00:42]}  axb3 {[%clk 0:01:57]} 34. axb3 {[%clk 0:00:43]}  Rab8 {[%clk 0:01:50]} 35. Rgf1 {[%clk 0:00:40]}  Re7 {[%clk 0:01:49]} 36. hxg6 {[%clk 0:00:40]}  hxg6 {[%clk 0:01:48]} 37. Rh1 {[%clk 0:00:39]}  Kg7 {[%clk 0:01:47]} 38. Ba6 {[%clk 0:00:34]}  Rh8 {[%clk 0:01:46]} 39. Rxh8 {[%clk 0:00:33]}  Kxh8 {[%clk 0:01:47]} 40. Kd3 {[%clk 0:00:34]}  Kg7 {[%clk 0:01:47]} 41. Kc4 {[%clk 0:00:34]}  Bg4 {[%clk 0:01:47]} 42. Rf2 {[%clk 0:00:26]}  Bg3 {[%clk 0:01:36]} 43. Rg2 {[%clk 0:00:26]}  Rxe4+ {[%clk 0:01:36]} 44. Kb5 {[%clk 0:00:18]}  Be2+ {[%clk 0:01:34]} 45. Kc6 {[%clk 0:00:12]}  Bxa6 {[%clk 0:01:34]} 46. Rxg3 {[%clk 0:00:12]}  Be2 {[%clk 0:01:27]} 47. Kxd6 {[%clk 0:00:13]}  Bd1 {[%clk 0:01:27]} 48. Kc5 {[%clk 0:00:14]}  Bxc2 {[%clk 0:01:25]} 49. d6 {[%clk 0:00:14]}  Bd1 {[%clk 0:01:08]} 50. d7 {[%clk 0:00:10]}  c2 {[%clk 0:01:08]} 51. d8=Q {[%clk 0:00:09]}  c1=Q+ {[%clk 0:01:08]} 52. Kb6 {[%clk 0:00:08]}  Re6+ {[%clk 0:01:08]} 53. Kb7 {[%clk 0:00:07]}  Qc6+ {[%clk 0:01:07]} 54. Kb8 {[%clk 0:00:07]}  Re8 {[%clk 0:01:05]} 0-1


[Site "https://www.chess.com"]

[Event "Titled Tuesday Blitz August 16 Late 2022"]
[White "Przybylski, Wojciech"]
[Black "Melikyan, Gnel"]
[WhiteFideId "1117599"]
[BlackFideId "54109990"]
[WhiteElo "2133"]
[BlackElo "1772"]
[Result "0-1"]
[Round "10"]
[TimeControl "180+1"]
[Date "2022.08.16"]
[WhiteClock "0:00:04"]
[BlackClock "0:00:06"]

1. e4 {[%clk 0:02:51]}  e5 {[%clk 0:02:58]} 2. Nf3 {[%clk 0:02:51]}  Nc6 {[%clk 0:02:54]} 3. Bb5 {[%clk 0:02:51]}  Nf6 {[%clk 0:02:55]} 4. O-O {[%clk 0:02:50]}  Nxe4 {[%clk 0:02:54]} 5. d4 {[%clk 0:02:50]}  Nd6 {[%clk 0:02:54]} 6. Bxc6 {[%clk 0:02:47]}  dxc6 {[%clk 0:02:53]} 7. dxe5 {[%clk 0:02:46]}  Nf5 {[%clk 0:02:54]} 8. Qe2 {[%clk 0:02:38]}  Nd4 {[%clk 0:02:53]} 9. Nxd4 {[%clk 0:02:38]}  Qxd4 {[%clk 0:02:54]} 10. h3 {[%clk 0:02:39]}  Bf5 {[%clk 0:02:50]} 11. Nc3 {[%clk 0:02:38]}  Bc5 {[%clk 0:02:31]} 12. Rd1 {[%clk 0:02:33]}  Qh4 {[%clk 0:02:27]} 13. Be3 {[%clk 0:02:31]}  Bxe3 {[%clk 0:02:26]} 14. Qxe3 {[%clk 0:02:26]}  O-O {[%clk 0:02:26]} 15. Rd4 {[%clk 0:02:19]}  Qe7 {[%clk 0:02:20]} 16. Rd2 {[%clk 0:02:09]}  Rfd8 {[%clk 0:02:20]} 17. Rad1 {[%clk 0:02:08]}  a6 {[%clk 0:02:13]} 18. g4 {[%clk 0:02:05]}  Be6 {[%clk 0:02:09]} 19. f4 {[%clk 0:02:03]}  Rxd2 {[%clk 0:01:58]} 20. Rxd2 {[%clk 0:02:00]}  Rd8 {[%clk 0:01:50]} 21. Rxd8+ {[%clk 0:01:59]}  Qxd8 {[%clk 0:01:50]} 22. f5 {[%clk 0:01:59]}  Bd5 {[%clk 0:01:47]} 23. b3 {[%clk 0:01:43]}  Qh4 {[%clk 0:01:46]} 24. Kh2 {[%clk 0:00:30]}  h5 {[%clk 0:01:35]} 25. g5 {[%clk 0:00:30]}  Kf8 {[%clk 0:00:57]} 26. f6 {[%clk 0:00:22]}  Be6 {[%clk 0:00:49]} 27. fxg7+ {[%clk 0:00:11]}  Kxg7 {[%clk 0:00:49]} 28. Ne2 {[%clk 0:00:11]}  Kg8 {[%clk 0:00:33]} 29. c4 {[%clk 0:00:11]}  c5 {[%clk 0:00:20]} 30. Ng1 {[%clk 0:00:09]}  Qd4 {[%clk 0:00:17]} 31. Qxd4 {[%clk 0:00:08]}  cxd4 {[%clk 0:00:17]} 32. Nf3 {[%clk 0:00:08]}  c5 {[%clk 0:00:18]} 33. Kg3 {[%clk 0:00:08]}  Kg7 {[%clk 0:00:18]} 34. h4 {[%clk 0:00:08]}  Kg6 {[%clk 0:00:18]} 35. Kf4 {[%clk 0:00:08]}  Bg4 {[%clk 0:00:18]} 36. Nd2 {[%clk 0:00:08]}  Bf5 {[%clk 0:00:18]} 37. Nf3 {[%clk 0:00:08]}  Bg4 {[%clk 0:00:18]} 38. Nd2 {[%clk 0:00:08]}  Bf5 {[%clk 0:00:18]} 39. a3 {[%clk 0:00:08]}  a5 {[%clk 0:00:17]} 40. Kf3 {[%clk 0:00:08]}  b6 {[%clk 0:00:17]} 41. Kg3 {[%clk 0:00:08]}  Bc2 {[%clk 0:00:18]} 42. Kf4 {[%clk 0:00:09]}  Bd1 {[%clk 0:00:18]} 43. Ke4 {[%clk 0:00:08]}  Bc2+ {[%clk 0:00:18]} 44. Kd5 {[%clk 0:00:07]}  Kf5 {[%clk 0:00:18]} 45. Kd6 {[%clk 0:00:07]}  Kg4 {[%clk 0:00:16]} 46. a4 {[%clk 0:00:06]}  Kxh4 {[%clk 0:00:16]} 47. b4 {[%clk 0:00:04]}  cxb4 {[%clk 0:00:15]} 48. g6 {[%clk 0:00:02]}  Bxg6 {[%clk 0:00:13]} 49. Kc6 {[%clk 0:00:03]}  Kg3 {[%clk 0:00:12]} 50. Kxb6 {[%clk 0:00:03]}  h4 {[%clk 0:00:12]} 51. c5 {[%clk 0:00:04]}  h3 {[%clk 0:00:13]} 52. c6 {[%clk 0:00:04]}  h2 {[%clk 0:00:12]} 53. e6 {[%clk 0:00:03]}  h1=Q {[%clk 0:00:11]} 54. c7 {[%clk 0:00:04]}  Qa8 {[%clk 0:00:11]} 55. e7 {[%clk 0:00:03]}  Qc8 {[%clk 0:00:08]} 56. Nc4 {[%clk 0:00:03]}  Qd7 {[%clk 0:00:06]} 57. Ne5 {[%clk 0:00:01]}  Qd6+ {[%clk 0:00:06]} 58. Kb7 {[%clk 0:00:01]}  Qxe5 {[%clk 0:00:05]} 59. c8=Q {[%clk 0:00:02]}  Qxe7+ {[%clk 0:00:06]} 60. Kb6 {[%clk 0:00:02]}  Qe6+ {[%clk 0:00:06]} 61. Kc5 {[%clk 0:00:02]}  Qxc8+ {[%clk 0:00:06]} 62. Kxd4 {[%clk 0:00:02]}  Qc2 {[%clk 0:00:06]} 63. Kd5 {[%clk 0:00:03]}  Qxa4 {[%clk 0:00:06]} 64. Kd4 {[%clk 0:00:03]}  Qd1+ {[%clk 0:00:06]} 65. Ke3 {[%clk 0:00:04]}  Qd3# {[%clk 0:00:06]} 0-1


[Site "https://www.chess.com"]

[Event "Titled Tuesday Blitz August 16 Late 2022"]
[White "Roman, Rodrigo"]
[Black "Solon, Nathan"]
[WhiteFideId "3701220"]
[BlackFideId "2017229"]
[WhiteElo "2001"]
[BlackElo "2632"]
[Result "0-1"]
[Round "10"]
[TimeControl "180+1"]
[Date "2022.08.16"]
[WhiteClock "0:00:03"]
[BlackClock "0:01:20"]

1. e4 {[%clk 0:02:56]}  c6 {[%clk 0:03:00]} 2. Ne2 {[%clk 0:02:54]}  d5 {[%clk 0:03:00]} 3. e5 {[%clk 0:02:54]}  c5 {[%clk 0:02:58]} 4. c3 {[%clk 0:02:51]}  Nc6 {[%clk 0:02:57]} 5. d4 {[%clk 0:02:45]}  Bf5 {[%clk 0:02:55]} 6. Be3 {[%clk 0:02:32]}  e6 {[%clk 0:02:53]} 7. Nd2 {[%clk 0:02:18]}  Qb6 {[%clk 0:02:49]} 8. b3 {[%clk 0:00:32]}  cxd4 {[%clk 0:02:42]} 9. Nxd4 {[%clk 0:00:28]}  Nxd4 {[%clk 0:02:41]} 10. Bxd4 {[%clk 0:00:28]}  Bc5 {[%clk 0:02:40]} 11. Nf3 {[%clk 0:00:25]}  Ne7 {[%clk 0:02:39]} 12. Bd3 {[%clk 0:00:22]}  O-O {[%clk 0:02:33]} 13. O-O {[%clk 0:00:21]}  Rac8 {[%clk 0:02:33]} 14. a4 {[%clk 0:00:16]}  Bxd4 {[%clk 0:02:19]} 15. cxd4 {[%clk 0:00:13]}  Rc3 {[%clk 0:02:18]} 16. Bxf5 {[%clk 0:00:10]}  Nxf5 {[%clk 0:02:19]} 17. Rb1 {[%clk 0:00:11]}  Rfc8 {[%clk 0:02:11]} 18. Rb2 {[%clk 0:00:09]}  Qb4 {[%clk 0:02:04]} 19. Qd2 {[%clk 0:00:07]}  a5 {[%clk 0:02:03]} 20. h3 {[%clk 0:00:06]}  h6 {[%clk 0:01:59]} 21. Rd1 {[%clk 0:00:04]}  Rxb3 {[%clk 0:01:45]} 22. Qxb4 {[%clk 0:00:05]}  Rxb4 {[%clk 0:01:45]} 23. Rxb4 {[%clk 0:00:06]}  axb4 {[%clk 0:01:46]} 24. Rb1 {[%clk 0:00:07]}  Rc4 {[%clk 0:01:46]} 25. Rd1 {[%clk 0:00:06]}  Kf8 {[%clk 0:01:31]} 26. Rd3 {[%clk 0:00:05]}  Ne7 {[%clk 0:01:21]} 27. Rb3 {[%clk 0:00:05]}  Nc6 {[%clk 0:01:22]} 28. Rd3 {[%clk 0:00:03]}  Ke7 {[%clk 0:01:21]} 29. Kf1 {[%clk 0:00:04]}  Rc1+ {[%clk 0:01:20]} 30. Ke2 {[%clk 0:00:03]}  Ra1 {[%clk 0:01:21]} 31. Rb3 {[%clk 0:00:03]}  Rxa4 {[%clk 0:01:21]} 32. Ke3 {[%clk 0:00:03]}  Ra3 {[%clk 0:01:20]} 33. Nd2 {[%clk 0:00:04]}  Na5 {[%clk 0:01:20]} 34. Rxa3 {[%clk 0:00:03]}  bxa3 {[%clk 0:01:20]} 0-1


[Site "https://www.chess.com"]

[Event "Titled Tuesday Blitz August 16 Late 2022"]
[White "Sailer, Mike"]
[Black "Winkels, Marcel"]
[WhiteFideId "2012901"]
[BlackFideId "1003887"]
[WhiteElo "2109"]
[BlackElo "1900"]
[Result "1-0"]
[Round "10"]
[TimeControl "180+1"]
[Date "2022.08.18"]
[WhiteClock "0:00:00"]
[BlackClock "0:00:00"]

1. d4 {[%clk 0:00:00]}  Nf6 {[%clk 0:00:00]} 2. Nc3 {[%clk 0:00:00]}  c5 {[%clk 0:00:00]} 3. d5 {[%clk 0:00:00]}  d6 {[%clk 0:00:00]} 4. e4 {[%clk 0:00:00]}  g6 {[%clk 0:00:00]} 5. Bb5+ {[%clk 0:00:00]}  Bd7 {[%clk 0:00:00]} 6. a4 {[%clk 0:00:00]}  a6 {[%clk 0:00:00]} 7. Be2 {[%clk 0:00:00]}  Bg7 {[%clk 0:00:00]} 8. h3 {[%clk 0:00:00]}  O-O {[%clk 0:00:00]} 9. Nf3 {[%clk 0:00:00]}  e6 {[%clk 0:00:00]} 10. dxe6 {[%clk 0:00:00]}  Bxe6 {[%clk 0:00:00]} 11. O-O {[%clk 0:00:00]}  Nc6 {[%clk 0:00:00]} 12. Ng5 {[%clk 0:00:00]}  Nd4 {[%clk 0:00:00]} 13. Nxe6 {[%clk 0:00:00]}  fxe6 {[%clk 0:00:00]} 14. Bc4 {[%clk 0:00:00]}  d5 {[%clk 0:00:00]} 15. Bd3 {[%clk 0:00:00]}  Kh8 {[%clk 0:00:00]} 16. Bg5 {[%clk 0:00:00]}  h6 {[%clk 0:00:00]} 17. Bxf6 {[%clk 0:00:00]}  Bxf6 {[%clk 0:00:00]} 18. exd5 {[%clk 0:00:00]}  exd5 {[%clk 0:00:00]} 19. Bxg6 {[%clk 0:00:00]}  Rg8 {[%clk 0:00:00]} 20. Qh5 {[%clk 0:00:00]}  Bg7 {[%clk 0:00:00]} 21. Nxd5 {[%clk 0:00:00]}  Nxc2 {[%clk 0:00:00]} 22. Rad1 {[%clk 0:00:00]}  Nd4 {[%clk 0:00:00]} 23. Rfe1 {[%clk 0:00:00]}  Rf8 {[%clk 0:00:00]} 24. Re7 {[%clk 0:00:00]}  Rc8 {[%clk 0:00:00]} 25. Rde1 {[%clk 0:00:00]}  Qd6 {[%clk 0:00:00]} 26. Rxg7 {[%clk 0:00:00]}  Kxg7 {[%clk 0:00:00]} 27. Re7+ {[%clk 0:00:00]}  Qxe7 {[%clk 0:00:00]} 28. Nxe7 {[%clk 0:00:00]}  Rc7 {[%clk 0:00:00]} 29. Qe5+ {[%clk 0:00:00]} 1-0


[Site "https://www.chess.com"]

[Event "Titled Tuesday Blitz August 16 Late 2022"]
[White "Sanchez, Robert"]
[Black "Melikhov, Evgeny V."]
[WhiteFideId "2034360"]
[BlackFideId "4122046"]
[WhiteElo "1966"]
[BlackElo "1963"]
[Result "0-1"]
[Round "10"]
[TimeControl "180+1"]
[Date "2022.08.18"]
[WhiteClock "0:00:00"]
[BlackClock "0:00:00"]

1. e4 {[%clk 0:00:00]}  c5 {[%clk 0:00:00]} 2. Nf3 {[%clk 0:00:00]}  d6 {[%clk 0:00:00]} 3. d4 {[%clk 0:00:00]}  cxd4 {[%clk 0:00:00]} 4. Nxd4 {[%clk 0:00:00]}  Nf6 {[%clk 0:00:00]} 5. Nc3 {[%clk 0:00:00]}  a6 {[%clk 0:00:00]} 6. Be3 {[%clk 0:00:00]}  e5 {[%clk 0:00:00]} 7. Nb3 {[%clk 0:00:00]}  Be6 {[%clk 0:00:00]} 8. f3 {[%clk 0:00:00]}  Be7 {[%clk 0:00:00]} 9. Qd2 {[%clk 0:00:00]}  O-O {[%clk 0:00:00]} 10. O-O-O {[%clk 0:00:00]}  Nbd7 {[%clk 0:00:00]} 11. g4 {[%clk 0:00:00]}  b5 {[%clk 0:00:00]} 12. g5 {[%clk 0:00:00]}  Nh5 {[%clk 0:00:00]} 13. Nd5 {[%clk 0:00:00]}  Bxd5 {[%clk 0:00:00]} 14. exd5 {[%clk 0:00:00]}  a5 {[%clk 0:00:00]} 15. Bxb5 {[%clk 0:00:00]}  a4 {[%clk 0:00:00]} 16. Na1 {[%clk 0:00:00]}  Nc5 {[%clk 0:00:00]} 17. h4 {[%clk 0:00:00]}  Qb6 {[%clk 0:00:00]} 18. Bc6 {[%clk 0:00:00]}  Rab8 {[%clk 0:00:00]} 19. c4 {[%clk 0:00:00]}  a3 {[%clk 0:00:00]} 20. b3 {[%clk 0:00:00]}  f5 {[%clk 0:00:00]} 21. Bb5 {[%clk 0:00:00]}  f4 {[%clk 0:00:00]} 22. Bf2 {[%clk 0:00:00]}  Rfc8 {[%clk 0:00:00]} 23. Kb1 {[%clk 0:00:00]}  e4 {[%clk 0:00:00]} 24. fxe4 {[%clk 0:00:00]}  Nxe4 {[%clk 0:00:00]} 25. Bxb6 {[%clk 0:00:00]}  Nxd2+ {[%clk 0:00:00]} 26. Rxd2 {[%clk 0:00:00]}  Rxb6 {[%clk 0:00:00]} 27. Re1 {[%clk 0:00:00]}  Bf8 {[%clk 0:00:00]} 28. Nc2 {[%clk 0:00:00]}  Ra8 {[%clk 0:00:00]} 29. Nd4 {[%clk 0:00:00]}  g6 {[%clk 0:00:00]} 30. Rde2 {[%clk 0:00:00]}  Bg7 {[%clk 0:00:00]} 31. Re8+ {[%clk 0:00:00]}  Rxe8 {[%clk 0:00:00]} 32. Rxe8+ {[%clk 0:00:00]}  Kf7 {[%clk 0:00:00]} 33. Re4 {[%clk 0:00:00]}  Bxd4 {[%clk 0:00:00]} 34. Rxd4 {[%clk 0:00:00]}  Rb7 {[%clk 0:00:00]} 35. Kc2 {[%clk 0:00:00]}  Re7 {[%clk 0:00:00]} 36. Rd2 {[%clk 0:00:00]}  Ng3 {[%clk 0:00:00]} 37. b4 {[%clk 0:00:00]}  f3 {[%clk 0:00:00]} 38. Rf2 {[%clk 0:00:00]}  Re2+ {[%clk 0:00:00]} 39. Rxe2 {[%clk 0:00:00]}  Nxe2 {[%clk 0:00:00]} 40. c5 {[%clk 0:00:00]}  Nd4+ {[%clk 0:00:00]} 41. Kd2 {[%clk 0:00:00]}  Nxb5 {[%clk 0:00:00]} 42. Ke3 {[%clk 0:00:00]}  dxc5 {[%clk 0:00:00]} 43. bxc5 {[%clk 0:00:00]}  Nc3 {[%clk 0:00:00]} 44. Kxf3 {[%clk 0:00:00]}  Nxa2 {[%clk 0:00:00]} 0-1


[Site "https://www.chess.com"]

[Event "Titled Tuesday Blitz August 16 Late 2022"]
[White "Tanenbaum, Zachary"]
[Black "Krzywda, Andrzej"]
[WhiteFideId "2060850"]
[BlackFideId "1114565"]
[WhiteElo "2175"]
[BlackElo "2098"]
[Result "1/2-1/2"]
[Round "10"]
[TimeControl "180+1"]
[Date "2022.08.18"]
[WhiteClock "0:00:00"]
[BlackClock "0:00:00"]

1. b3 {[%clk 0:00:00]}  c5 {[%clk 0:00:00]} 2. Bb2 {[%clk 0:00:00]}  d6 {[%clk 0:00:00]} 3. e3 {[%clk 0:00:00]}  Nc6 {[%clk 0:00:00]} 4. Nf3 {[%clk 0:00:00]}  e5 {[%clk 0:00:00]} 5. Be2 {[%clk 0:00:00]}  g6 {[%clk 0:00:00]} 6. d4 {[%clk 0:00:00]}  exd4 {[%clk 0:00:00]} 7. exd4 {[%clk 0:00:00]}  Bg7 {[%clk 0:00:00]} 8. O-O {[%clk 0:00:00]}  cxd4 {[%clk 0:00:00]} 9. Nxd4 {[%clk 0:00:00]}  Nxd4 {[%clk 0:00:00]} 10. Bxd4 {[%clk 0:00:00]}  Bxd4 {[%clk 0:00:00]} 11. Qxd4 {[%clk 0:00:00]}  Qf6 {[%clk 0:00:00]} 12. Bb5+ {[%clk 0:00:00]}  Bd7 {[%clk 0:00:00]} 13. Qe4+ {[%clk 0:00:00]}  Kf8 {[%clk 0:00:00]} 14. Qxb7 {[%clk 0:00:00]}  Bxb5 {[%clk 0:00:00]} 15. Qxa8+ {[%clk 0:00:00]}  Kg7 {[%clk 0:00:00]} 16. Nd2 {[%clk 0:00:00]}  Bxf1 {[%clk 0:00:00]} 17. Rxf1 {[%clk 0:00:00]}  Qd4 {[%clk 0:00:00]} 18. Nf3 {[%clk 0:00:00]}  Qc5 {[%clk 0:00:00]} 19. Qe4 {[%clk 0:00:00]}  Nf6 {[%clk 0:00:00]} 20. Qd3 {[%clk 0:00:00]}  Rc8 {[%clk 0:00:00]} 21. c4 {[%clk 0:00:00]}  d5 {[%clk 0:00:00]} 22. Rc1 {[%clk 0:00:00]}  Qa3 {[%clk 0:00:00]} 23. Qc2 {[%clk 0:00:00]}  dxc4 {[%clk 0:00:00]} 24. bxc4 {[%clk 0:00:00]}  Qc5 {[%clk 0:00:00]} 25. h3 {[%clk 0:00:00]}  Kg8 {[%clk 0:00:00]} 26. Qc3 {[%clk 0:00:00]}  Ne4 {[%clk 0:00:00]} 27. Qd4 {[%clk 0:00:00]}  Qxd4 {[%clk 0:00:00]} 28. Nxd4 {[%clk 0:00:00]}  Nc5 {[%clk 0:00:00]} 29. Kf1 {[%clk 0:00:00]}  f5 {[%clk 0:00:00]} 30. Nb3 {[%clk 0:00:00]}  Ne4 {[%clk 0:00:00]} 31. f3 {[%clk 0:00:00]}  Ng3+ {[%clk 0:00:00]} 32. Kf2 {[%clk 0:00:00]}  f4 {[%clk 0:00:00]} 33. Nd4 {[%clk 0:00:00]}  Rd8 {[%clk 0:00:00]} 34. Nb3 {[%clk 0:00:00]}  a5 {[%clk 0:00:00]} 35. Nxa5 {[%clk 0:00:00]}  Rd2+ {[%clk 0:00:00]} 36. Kg1 {[%clk 0:00:00]}  Rxa2 {[%clk 0:00:00]} 37. Kh2 {[%clk 0:00:00]}  Rxa5 {[%clk 0:00:00]} 38. c5 {[%clk 0:00:00]}  Ra7 {[%clk 0:00:00]} 39. h4 {[%clk 0:00:00]}  Rc7 {[%clk 0:00:00]} 40. Kh3 {[%clk 0:00:00]}  Nh5 {[%clk 0:00:00]} 41. Kg4 {[%clk 0:00:00]}  Kf7 {[%clk 0:00:00]} 42. Kg5 {[%clk 0:00:00]}  Rc6 {[%clk 0:00:00]} 43. Kh6 {[%clk 0:00:00]}  Nf6 {[%clk 0:00:00]} 44. Kg5 {[%clk 0:00:00]}  Nd7 {[%clk 0:00:00]} 45. Kxf4 {[%clk 0:00:00]}  Rxc5 {[%clk 0:00:00]} 46. Rd1 {[%clk 0:00:00]}  Nf6 {[%clk 0:00:00]} 47. g4 {[%clk 0:00:00]}  Rc4+ {[%clk 0:00:00]} 48. Kg3 {[%clk 0:00:00]}  Rc5 {[%clk 0:00:00]} 49. Rb1 {[%clk 0:00:00]}  Rc7 {[%clk 0:00:00]} 50. Rb2 {[%clk 0:00:00]}  Re7 {[%clk 0:00:00]} 51. Rb3 {[%clk 0:00:00]}  Nd5 {[%clk 0:00:00]} 52. Rd3 {[%clk 0:00:00]}  Ne3 {[%clk 0:00:00]} 53. Rd4 {[%clk 0:00:00]}  h6 {[%clk 0:00:00]} 54. Kf2 {[%clk 0:00:00]}  Nc2 {[%clk 0:00:00]} 55. Rc4 {[%clk 0:00:00]}  Na3 {[%clk 0:00:00]} 56. Rc5 {[%clk 0:00:00]}  Nb1 {[%clk 0:00:00]} 57. Rc2 {[%clk 0:00:00]}  Na3 {[%clk 0:00:00]} 58. Rc5 {[%clk 0:00:00]}  Ra7 {[%clk 0:00:00]} 59. Kg3 {[%clk 0:00:00]}  Kf6 {[%clk 0:00:00]} 60. Rc6+ {[%clk 0:00:00]}  Kg7 {[%clk 0:00:00]} 61. Rc5 {[%clk 0:00:00]}  Nb1 {[%clk 0:00:00]} 62. Rc2 {[%clk 0:00:00]}  Na3 {[%clk 0:00:00]} 63. Rb2 {[%clk 0:00:00]}  Nc4 {[%clk 0:00:00]} 64. Rc2 {[%clk 0:00:00]}  Nd6 {[%clk 0:00:00]} 65. Rd2 {[%clk 0:00:00]}  Nf7 {[%clk 0:00:00]} 66. Re2 {[%clk 0:00:00]}  Ra1 {[%clk 0:00:00]} 67. Re6 {[%clk 0:00:00]}  Rg1+ {[%clk 0:00:00]} 68. Kf2 {[%clk 0:00:00]}  Rh1 {[%clk 0:00:00]} 69. Kg3 {[%clk 0:00:00]}  Ra1 {[%clk 0:00:00]} 70. Rb6 {[%clk 0:00:00]}  Ra4 {[%clk 0:00:00]} 71. Rb7 {[%clk 0:00:00]}  Ra6 {[%clk 0:00:00]} 72. Rb5 {[%clk 0:00:00]}  Rf6 {[%clk 0:00:00]} 73. Rc5 {[%clk 0:00:00]}  Re6 {[%clk 0:00:00]} 74. Rb5 {[%clk 0:00:00]}  Re7 {[%clk 0:00:00]} 75. Kf2 {[%clk 0:00:00]}  Nd6 {[%clk 0:00:00]} 76. Rd5 {[%clk 0:00:00]}  Nf7 {[%clk 0:00:00]} 77. f4 {[%clk 0:00:00]}  Kf6 {[%clk 0:00:00]} 78. Kf3 {[%clk 0:00:00]}  Re6 {[%clk 0:00:00]} 79. f5 {[%clk 0:00:00]}  gxf5 {[%clk 0:00:00]} 80. Rxf5+ {[%clk 0:00:00]}  Kg6 {[%clk 0:00:00]} 81. Kf4 {[%clk 0:00:00]}  Rf6 {[%clk 0:00:00]} 82. Rxf6+ {[%clk 0:00:00]}  Kxf6 {[%clk 0:00:00]} 83. g5+ {[%clk 0:00:00]}  hxg5+ {[%clk 0:00:00]} 84. hxg5+ {[%clk 0:00:00]}  Nxg5 {[%clk 0:00:00]} 1/2-1/2


[Site "https://www.chess.com"]

[Event "Titled Tuesday Blitz August 16 Late 2022"]
[White "Tarnowska, Aleksandra"]
[Black "Rose, Felix"]
[WhiteFideId "1180967"]
[BlackFideId "5105722"]
[WhiteElo "1700"]
[BlackElo "2039"]
[Result "0-1"]
[Round "10"]
[TimeControl "180+1"]
[Date "2022.08.18"]
[WhiteClock "0:00:00"]
[BlackClock "0:00:00"]

1. e4 {[%clk 0:00:00]}  c5 {[%clk 0:00:00]} 2. Nf3 {[%clk 0:00:00]}  e6 {[%clk 0:00:00]} 3. d3 {[%clk 0:00:00]}  Nc6 {[%clk 0:00:00]} 4. g3 {[%clk 0:00:00]}  d5 {[%clk 0:00:00]} 5. Nc3 {[%clk 0:00:00]}  dxe4 {[%clk 0:00:00]} 6. Nxe4 {[%clk 0:00:00]}  Be7 {[%clk 0:00:00]} 7. Bg2 {[%clk 0:00:00]}  Nf6 {[%clk 0:00:00]} 8. Nc3 {[%clk 0:00:00]}  O-O {[%clk 0:00:00]} 9. O-O {[%clk 0:00:00]}  Bd7 {[%clk 0:00:00]} 10. Re1 {[%clk 0:00:00]}  Qb6 {[%clk 0:00:00]} 11. Rb1 {[%clk 0:00:00]}  Rad8 {[%clk 0:00:00]} 12. Be3 {[%clk 0:00:00]}  Nd4 {[%clk 0:00:00]} 13. Nd2 {[%clk 0:00:00]}  Bc6 {[%clk 0:00:00]} 14. Nde4 {[%clk 0:00:00]}  Nf5 {[%clk 0:00:00]} 15. Qe2 {[%clk 0:00:00]}  Nxe3 {[%clk 0:00:00]} 16. Qxe3 {[%clk 0:00:00]}  Nd5 {[%clk 0:00:00]} 17. Nxd5 {[%clk 0:00:00]}  exd5 {[%clk 0:00:00]} 18. Ng5 {[%clk 0:00:00]}  Rfe8 {[%clk 0:00:00]} 19. Qf4 {[%clk 0:00:00]}  Bf6 {[%clk 0:00:00]} 20. h4 {[%clk 0:00:00]}  h6 {[%clk 0:00:00]} 21. Nf3 {[%clk 0:00:00]}  Rxe1+ {[%clk 0:00:00]} 22. Rxe1 {[%clk 0:00:00]}  Qxb2 {[%clk 0:00:00]} 23. g4 {[%clk 0:00:00]}  Qxc2 {[%clk 0:00:00]} 24. g5 {[%clk 0:00:00]}  hxg5 {[%clk 0:00:00]} 25. hxg5 {[%clk 0:00:00]}  Bc3 {[%clk 0:00:00]} 26. Re7 {[%clk 0:00:00]}  Rf8 {[%clk 0:00:00]} 27. Qg4 {[%clk 0:00:00]}  Qxd3 {[%clk 0:00:00]} 28. g6 {[%clk 0:00:00]}  Qxg6 {[%clk 0:00:00]} 29. Qf4 {[%clk 0:00:00]}  Qb1+ {[%clk 0:00:00]} 30. Kh2 {[%clk 0:00:00]}  Qh7+ {[%clk 0:00:00]} 31. Kg1 {[%clk 0:00:00]}  d4 {[%clk 0:00:00]} 32. Ng5 {[%clk 0:00:00]}  Qb1+ {[%clk 0:00:00]} 33. Kh2 {[%clk 0:00:00]}  Qg6 {[%clk 0:00:00]} 34. Kg1 {[%clk 0:00:00]}  Bxg2 {[%clk 0:00:00]} 35. Kxg2 {[%clk 0:00:00]}  f6 {[%clk 0:00:00]} 36. Qc7 {[%clk 0:00:00]}  Qxg5+ {[%clk 0:00:00]} 37. Kf1 {[%clk 0:00:00]}  d3 {[%clk 0:00:00]} 38. Qd7 {[%clk 0:00:00]}  d2 {[%clk 0:00:00]} 39. Qe6+ {[%clk 0:00:00]}  Kh7 {[%clk 0:00:00]} 40. Qe2 {[%clk 0:00:00]}  Rd8 {[%clk 0:00:00]} 41. Qe4+ {[%clk 0:00:00]}  Qg6 {[%clk 0:00:00]} 42. Qh4+ {[%clk 0:00:00]}  Qh6 {[%clk 0:00:00]} 43. Qe4+ {[%clk 0:00:00]}  Kh8 {[%clk 0:00:00]} 44. Re8+ {[%clk 0:00:00]}  Rxe8 {[%clk 0:00:00]} 45. Qxe8+ {[%clk 0:00:00]}  Kh7 {[%clk 0:00:00]} 46. Qe4+ {[%clk 0:00:00]}  Qg6 {[%clk 0:00:00]} 47. Qh4+ {[%clk 0:00:00]}  Kg8 {[%clk 0:00:00]} 48. Qc4+ {[%clk 0:00:00]}  Qf7 {[%clk 0:00:00]} 49. Qd3 {[%clk 0:00:00]}  c4 {[%clk 0:00:00]} 50. Qd8+ {[%clk 0:00:00]}  Kh7 {[%clk 0:00:00]} 51. Qd6 {[%clk 0:00:00]}  b5 {[%clk 0:00:00]} 52. Qh2+ {[%clk 0:00:00]}  Kg8 {[%clk 0:00:00]} 53. Qb8+ {[%clk 0:00:00]}  Qf8 {[%clk 0:00:00]} 54. Qd6 {[%clk 0:00:00]}  Qxd6 {[%clk 0:00:00]} 0-1


[Site "https://www.chess.com"]